bitfinex/quotes_SOLUSD_20251119
["timestamp","ask_amount","ask_price","bid_price","bid_amount"]
[1763594103216,6.15279346,137.05,137.0,6.85279346]
[1763594103415,6.15279346,137.05,137.01,0.7]
[1763594103705,6.8700298,137.07,137.01,0.7]
[1763594103706,0.21,137.06,137.01,0.7]
[1763594103904,6.6600298,137.07,137.01,0.7]
[1763594104077,18.12096,137.09,137.02,6.15279346]
[1763594104282,6.15279346,137.08,137.03,1.34]
[1763594104692,6.15279346,137.08,137.04,0.7]
[1763594104904,0.1,137.1,137.04,0.7]
[1763594105107,6.15279346,137.09,137.04,6.85279346]
[1763594105292,0.1,137.1,137.04,0.7]
[1763594105495,0.1,137.1,137.05,6.85279346]
[1763594106009,0.1,137.1,137.06,0.7]
[1763594106222,6.15279346,137.07,136.98,0.7]
[1763594106511,1.76,137.06,136.98,0.7]
[1763594106683,18.12096,137.04,136.98,0.7]
[1763594106884,27.90978769,137.07,136.99,6.15279346]
[1763594107103,27.90978769,137.07,136.98,0.7]
[1763594107104,19.88096,137.07,136.98,0.7]
[1763594107303,0.1,137.1,137.03,6.15279346]
[1763594107504,0.1,137.1,137.07,6.15279346]
[1763594107697,0.1,137.1,137.04,0.84]
[1763594107698,0.1,137.14,137.08,0.7]
[1763594108006,6.15279346,137.12,137.08,0.7]
[1763594108213,6.25279346,137.14,137.08,0.7]
[1763594108387,6.15279346,137.11,137.08,1.64]
[1763594108587,6.15279346,137.09,137.03,6.85279346]
[1763594108899,6.15279346,137.08,137.04,2.46]
[1763594109086,6.15279346,137.09,137.04,2.46]
[1763594109294,18.42096,137.14,137.06,6.15279346]
[1763594109612,6.15279346,137.09,137.05,1.64]
[1763594109991,6.15279346,137.09,137.05,0.94]
[1763594110186,6.15279346,137.09,137.05,0.7]
[1763594110499,0.2,137.11,137.05,0.7]
[1763594110703,6.15279346,137.09,137.05,0.7]
[1763594110903,19.32096,137.14,137.06,6.15279346]
[1763594110904,19.52096,137.14,137.06,6.15279346]
[1763594111085,6.15279346,137.12,137.07,6.85279346]
[1763594111291,6.15279346,137.13,137.07,6.85279346]
[1763594111493,6.15279346,137.13,137.08,6.15279346]
[1763594111701,6.15279346,137.13,137.08,0.7]
[1763594111911,6.15279346,137.12,137.07,6.15279346]
[1763594112113,0.2,137.12,137.03,0.7]
[1763594112316,6.15279346,137.06,137.0,0.7]
[1763594112507,6.15279346,137.06,137.01,0.62]
[1763594112716,6.15279346,137.04,136.99,6.85279346]
[1763594113019,6.15279346,137.04,136.99,0.7]
[1763594113221,0.2,137.03,136.97,0.7]
[1763594113390,6.15279346,137.01,136.97,0.7]
[1763594113690,6.15279346,137.02,136.97,6.85279346]
[1763594114313,6.15279346,137.01,136.97,0.7]
[1763594115617,6.15279346,136.99,136.96,1.76]
[1763594115820,6.15279346,136.99,136.94,0.7]
[1763594115993,6.15279346,136.98,136.94,0.7]
[1763594116199,6.15279346,136.97,136.93,12.72]
[1763594116498,6.15279346,136.97,136.93,13.42]
[1763594116693,6.15279346,136.97,136.93,11.66]
[1763594117016,6.15279346,136.94,136.9,2.46]
[1763594117319,6.15279346,136.92,136.88,1.76]
[1763594117524,0.2,136.94,136.88,1.76]
[1763594117700,0.2,136.94,136.88,2.46]
[1763594117901,6.15279346,136.93,136.88,8.61279346]
[1763594118095,6.15279346,136.92,136.88,2.46]
[1763594118620,6.15279346,136.93,136.89,0.7]
[1763594118926,1.76,136.95,136.89,0.7]
[1763594119225,6.15279346,136.93,136.88,1.76]
[1763594119395,0.2,136.94,136.88,1.76]
[1763594119591,6.15279346,136.92,136.88,1.76]
[1763594119920,6.15279346,136.9,136.85,18.23279346]
[1763594120419,1.76,136.92,136.85,1.12]
[1763594120420,0.2,136.89,136.85,1.12]
[1763594120623,6.15279346,136.86,136.8,6.35279346]
[1763594120842,10.73784361,136.86,136.81,10.73784361]
[1763594121005,20.08096,136.88,136.82,10.73784361]
[1763594121196,18.12096,136.88,136.84,10.73784361]
[1763594121803,0.2,136.93,136.87,10.73784361]
[1763594122123,10.73784361,136.9,136.82,10.96]
[1763594122308,28.85880361,136.89,136.84,10.73784361]
[1763594122504,10.73784361,136.88,136.84,10.73784361]
[1763594122710,18.12096,136.89,136.85,11.43784361]
[1763594122912,18.12096,136.89,136.85,10.73784361]
[1763594123115,10.93784361,136.88,136.83,1.7]
[1763594123326,10.93784361,136.88,136.83,10.73784361]
[1763594123526,10.73784361,136.87,136.82,10.73784361]
[1763594123707,10.73784361,136.86,136.81,10.73784361]
[1763594124035,10.73784361,136.84,136.8,0.2]
[1763594124408,1.76,136.85,136.8,10.93784361]
[1763594124617,1.76,136.85,136.81,10.73784361]
[1763594124920,10.93784361,136.85,136.8,11.63784361]
[1763594125230,18.12096,136.86,136.81,0.7]
[1763594125399,18.12096,136.86,136.84,10.73784361]
[1763594125923,10.93784361,136.85,136.8,0.2]
[1763594126128,10.93784361,136.85,136.8,10.93784361]
[1763594126332,0.2,136.84,136.8,0.2]
[1763594126620,12.69784361,136.85,136.8,10.93784361]
[1763594127404,10.93784361,136.84,136.8,0.2]
[1763594127866,10.73784361,136.82,136.8,0.2]
[1763594128124,28.85880361,136.81,136.8,0.2]
[1763594128334,29.05880361,136.81,136.8,0.2]
[1763594129238,10.73784361,136.86,136.8,11.60784361]
[1763594129399,10.73784361,136.89,136.84,10.73784361]
[1763594129830,28.85880361,136.89,136.84,11.40784361]
[1763594130033,10.73784361,136.93,136.86,10.73784361]
[1763594130253,12.49784361,136.92,136.87,10.73784361]
[1763594130399,10.73784361,136.89,136.83,1.76]
[1763594130599,28.85880361,136.9,136.85,10.73784361]
[1763594130823,10.73784361,136.89,136.84,10.73784361]
[1763594131023,28.85880361,136.9,136.85,10.73784361]
[1763594131223,12.49784361,136.92,136.87,10.73784361]
[1763594131527,30.61880361,136.92,136.87,10.73784361]
[1763594131832,28.85880361,136.89,136.84,10.73784361]
[1763594132002,30.61880361,136.89,136.84,10.73784361]
[1763594132200,10.73784361,136.88,136.84,10.73784361]
[1763594132402,19.88096,136.89,136.85,10.73784361]
[1763594132602,19.88096,136.89,136.82,1.76]
[1763594132603,10.73784361,136.88,136.82,1.76]
[1763594132807,10.73784361,136.88,136.84,10.73784361]
[1763594133007,30.81880361,136.89,136.84,10.73784361]
[1763594133331,10.73784361,136.88,136.84,10.73784361]
[1763594133719,10.73784361,136.88,136.8,0.2]
[1763594133720,10.73784361,136.86,136.81,10.73784361]
[1763594133910,28.85880361,136.88,136.83,10.73784361]
[1763594134306,10.93784361,136.88,136.83,10.73784361]
[1763594134514,28.85880361,136.87,136.82,10.73784361]
[1763594134828,18.12096,136.88,136.84,10.73784361]
[1763594135024,30.61880361,136.9,136.86,10.73784361]
[1763594135212,30.61880361,136.9,136.82,1.76]
[1763594135213,30.61880361,136.9,136.85,10.73784361]
[1763594135845,0.2,136.89,136.84,10.73784361]
[1763594136138,28.85880361,136.87,136.83,13.16784361]
[1763594136442,28.85880361,136.87,136.83,12.49784361]
[1763594136834,29.05880361,136.87,136.83,1.76]
[1763594137018,10.73784361,136.85,136.8,10.93784361]
[1763594137221,10.73784361,136.85,136.8,12.69784361]
[1763594137438,0.2,136.84,136.8,1.96]
[1763594137735,10.73784361,136.83,136.8,1.96]
[1763594138038,12.69784361,136.84,136.8,1.96]
[1763594138405,10.93784361,136.83,136.8,1.96]
[1763594138605,10.73784361,136.83,136.8,1.96]
[1763594139525,1.76,136.84,136.8,1.96]
[1763594139742,12.69784361,136.84,136.8,1.96]
[1763594139936,18.12096,136.83,136.81,0.67]
[1763594140450,18.12096,136.83,136.8,12.69784361]
[1763594140742,18.12096,136.84,136.81,11.40784361]
[1763594140913,10.73784361,136.86,136.81,11.40784361]
[1763594141520,18.12096,136.86,136.82,11.40784361]
[1763594141724,10.73784361,136.85,136.8,1.96]
[1763594141912,10.73784361,136.85,136.8,12.69784361]
[1763594142134,10.73784361,136.83,136.8,0.2]
[1763594143416,10.93784361,136.83,136.8,0.2]
[1763594143618,10.73784361,136.82,136.8,0.2]
[1763594144347,10.93784361,136.81,136.8,0.2]
[1763594144638,33.22451491,136.81,136.8,0.2]
[1763594144841,9.78882769,136.8,136.79,0.2]
[1763594145032,9.78882769,136.8,136.7,12.49784361]
[1763594145033,9.78882769,136.76,136.7,12.49784361]
[1763594145351,21.47568722,136.8,136.7,12.49784361]
[1763594145352,1.76,136.78,136.73,10.73784361]
[1763594145546,28.85880361,136.77,136.73,10.73784361]
[1763594145848,3.82005592,136.89,136.76,10.73784361]
[1763594146047,10.73784361,136.85,136.8,10.73784361]
[1763594146340,10.73784361,136.85,136.8,11.40784361]
[1763594146643,10.73784361,136.84,136.8,0.67]
[1763594146858,10.73784361,136.84,136.79,12.49784361]
[1763594146859,9.78882769,136.88,136.82,10.73784361]
[1763594147050,10.73784361,136.89,136.83,1.76]
[1763594147219,10.73784361,136.88,136.83,1.76]
[1763594147420,28.85880361,136.86,136.83,1.76]
[1763594147631,1.76,136.9,136.83,13.16784361]
[1763594147822,10.73784361,136.89,136.84,11.40784361]
[1763594148137,10.73784361,136.89,136.84,0.67]
[1763594148346,10.73784361,136.88,136.84,0.67]
[1763594148519,10.73784361,136.86,136.82,10.73784361]
[1763594148719,10.73784361,136.85,136.82,1.76]
[1763594149048,10.73784361,136.86,136.82,1.76]
[1763594149251,28.85880361,136.87,136.83,0.67]
[1763594149713,1.76,136.88,136.83,0.67]
[1763594150043,1.76,136.88,136.83,11.40784361]
[1763594150044,10.73784361,136.88,136.83,11.40784361]
[1763594150417,10.73784361,136.88,136.84,0.68]
[1763594150614,28.85880361,136.89,136.84,11.41784361]
[1763594150835,18.12096,136.89,136.85,10.73784361]
[1763594151030,18.12096,136.89,136.85,0.68]
[1763594151234,10.73784361,136.9,136.86,0.68]
[1763594151822,10.73784361,136.89,136.86,0.68]
[1763594152244,27.90978769,136.91,136.86,0.68]
[1763594152245,10.73784361,136.9,136.86,0.68]
[1763594152432,10.73784361,136.89,136.86,0.68]
[1763594152831,10.73784361,136.88,136.84,2.44]
[1763594153033,10.73784361,136.88,136.85,0.68]
[1763594154439,9.78882769,136.9,136.85,0.68]
[1763594154644,10.73784361,136.88,136.85,0.68]
[1763594156427,9.78882769,136.9,136.85,0.68]
[1763594156750,10.73784361,136.88,136.85,0.68]
[1763594157548,4.87869826,136.89,136.85,0.68]
[1763594157764,18.12096,136.91,136.87,10.73784361]
[1763594157922,10.73784361,136.94,136.89,10.73784361]
[1763594158326,28.85880361,136.94,136.9,0.68]
[1763594158528,10.73784361,136.94,136.9,0.68]
[1763594158733,10.73784361,136.93,136.9,0.68]
[1763594158936,28.85880361,136.94,136.9,0.68]
[1763594159138,4.88734922,136.93,136.9,0.68]
[1763594159327,28.85880361,136.94,136.9,0.68]
[1763594159546,10.73784361,136.91,136.87,2.44]
[1763594159857,4.88734922,136.93,136.87,2.44]
[1763594160035,10.73784361,136.91,136.87,2.44]
[1763594160236,10.73784361,136.9,136.87,2.44]
[1763594160430,9.78882769,136.92,136.87,0.68]
[1763594160830,10.73784361,136.9,136.87,0.68]
[1763594161134,15.62519283,136.91,136.87,0.68]
[1763594161343,4.88734922,136.93,136.89,10.73784361]
[1763594161569,4.88734922,136.93,136.91,10.73784361]
[1763594161777,10.73784361,136.92,136.83,80.22096]
[1763594161948,10.73784361,136.9,136.86,2.44]
[1763594162136,10.73784361,136.9,136.86,0.68]
[1763594162343,10.73784361,136.89,136.87,0.68]
[1763594162649,4.88734922,136.91,136.87,0.68]
[1763594162961,10.73784361,136.88,136.82,2.44]
[1763594163148,10.73784361,136.86,136.82,2.44]
[1763594163352,10.73784361,136.86,136.83,0.68]
[1763594163556,10.73784361,136.84,136.73,7.31353993]
[1763594163745,10.73784361,136.81,136.77,0.68]
[1763594163944,10.73784361,136.8,136.77,0.68]
[1763594164262,10.73784361,136.81,136.77,0.68]
[1763594164456,6.0920915,136.85,136.78,10.73784361]
[1763594164457,23.00830922,136.83,136.78,10.73784361]
[1763594164666,10.73784361,136.83,136.78,10.73784361]
[1763594164846,33.76453011,136.83,136.79,0.68]
[1763594165050,4.90587874,136.82,136.79,0.68]
[1763594165274,18.12096,136.83,136.79,11.41784361]
[1763594165459,10.73784361,136.84,136.8,0.68]
[1763594165649,15.64397257,136.85,136.81,1.76]
[1763594166139,15.64397257,136.85,136.82,0.68]
[1763594166463,10.73784361,136.84,136.81,1.76]
[1763594166664,10.73784361,136.84,136.81,2.44]
[1763594166847,4.90612896,136.85,136.81,1.76]
[1763594167047,10.73784361,136.83,136.79,0.68]
[1763594167244,10.73784361,136.82,136.79,0.68]
[1763594167445,10.73784361,136.81,136.79,0.68]
[1763594167646,10.73784361,136.81,136.78,1.76]
[1763594167843,10.73784361,136.81,136.78,2.44]
[1763594168049,10.73784361,136.81,136.78,1.76]
[1763594168351,10.73784361,136.8,136.78,1.76]
[1763594168548,10.73784361,136.8,136.76,0.68]
[1763594168752,10.73784361,136.79,136.76,0.68]
[1763594169069,18.12096,136.81,136.77,10.73784361]
[1763594169272,18.12096,136.81,136.76,11.41784361]
[1763594169273,28.85880361,136.81,136.76,11.41784361]
[1763594169454,28.85880361,136.81,136.76,0.68]
[1763594169779,28.85880361,136.81,136.77,0.68]
[1763594170156,10.73784361,136.79,136.75,2.44]
[1763594170457,10.73784361,136.79,136.76,0.68]
[1763594170664,15.64404627,136.8,136.76,0.68]
[1763594170864,10.73784361,136.81,136.76,11.41784361]
[1763594171069,4.90575497,136.84,136.79,10.73784361]
[1763594171256,6.0920915,136.87,136.79,10.73784361]
[1763594171257,10.73784361,136.85,136.8,10.73784361]
[1763594171570,10.73784361,136.83,136.79,2.44]
[1763594172069,10.73784361,136.83,136.8,0.68]
[1763594172267,33.76385232,136.84,136.8,0.68]
[1763594172464,28.85880361,136.84,136.8,0.68]
[1763594172852,1.76,136.88,136.81,10.73784361]
[1763594173054,1.76,136.88,136.8,0.68]
[1763594173055,10.73784361,136.85,136.8,0.68]
[1763594173249,10.73784361,136.83,136.79,1.76]
[1763594173669,10.73784361,136.83,136.8,0.68]
[1763594174052,10.73784361,136.82,136.8,0.68]
[1763594174258,28.85880361,136.84,136.8,0.68]
[1763594174458,18.12096,136.86,136.8,11.41784361]
[1763594174681,28.85880361,136.86,136.8,11.41784361]
[1763594174863,10.73784361,136.85,136.8,10.73784361]
[1763594175056,10.73784361,136.85,136.81,0.68]
[1763594175256,10.73784361,136.86,136.81,0.68]
[1763594175458,10.73784361,136.87,136.81,11.41784361]
[1763594175657,10.73784361,136.87,136.82,10.73784361]
[1763594175969,10.73784361,136.88,136.83,12.49784361]
[1763594176156,10.73784361,136.87,136.83,2.44]
[1763594176354,10.73784361,136.87,136.84,0.68]
[1763594176763,10.73784361,136.86,136.8,0.68]
[1763594176978,10.73784361,136.86,136.81,1.76]
[1763594177169,10.73784361,136.85,136.81,0.68]
[1763594177366,10.73784361,136.83,136.78,2.44]
[1763594177549,18.12096,136.85,136.78,13.17784361]
[1763594177755,10.73784361,136.83,136.79,0.68]
[1763594178359,9.78882769,136.86,136.79,0.68]
[1763594178573,18.12096,136.83,136.79,11.41784361]
[1763594178774,18.12096,136.83,136.79,0.68]
[1763594178959,18.12096,136.83,136.8,0.68]
[1763594179850,10.73784361,136.84,136.8,0.68]
[1763594180553,6.0920915,136.9,136.82,10.73784361]
[1763594180877,18.12096,136.87,136.83,12.49784361]
[1763594181250,6.0920915,136.94,136.86,10.73784361]
[1763594181453,10.73784361,136.92,136.87,13.18784361]
[1763594181670,10.73784361,136.93,136.88,11.42784361]
[1763594181878,10.73784361,136.94,136.88,11.42784361]
[1763594182180,10.73784361,136.94,136.89,11.42784361]
[1763594182401,6.0920915,136.99,136.92,10.73784361]
[1763594182560,10.73784361,136.97,136.93,1.76]
[1763594182752,12.7523999,137.02,136.94,6.15441813]
[1763594182753,9.90883157,137.02,136.94,6.15441813]
[1763594182947,6.15441813,137.0,136.94,6.84441813]
[1763594183258,6.15441813,137.01,136.95,6.84441813]
[1763594183574,18.12096,136.99,136.96,0.69]
[1763594183770,6.15441813,137.01,136.96,0.69]
[1763594183978,24.27537813,137.01,136.96,6.84441813]
[1763594184276,24.27537813,137.01,136.96,0.69]
[1763594184469,0.1,136.98,136.97,0.69]
[1763594186277,0.1,136.98,136.95,0.66]
[1763594186464,0.1,136.98,136.95,6.15441813]
[1763594186772,6.15441813,136.97,136.93,0.66]
[1763594186977,6.15441813,136.97,136.87,18.12096]
[1763594186978,6.15441813,136.97,136.94,0.66]
[1763594187554,6.15441813,136.96,136.92,2.42]
[1763594187974,6.15441813,136.96,136.92,0.66]
[1763594188864,6.15441813,136.97,136.92,6.81441813]
[1763594189273,18.12096,136.97,136.93,0.66]
[1763594189469,6.25441813,136.98,136.93,0.66]
[1763594190078,0.1,136.98,136.93,0.66]
[1763594190258,6.25441813,136.98,136.93,6.81441813]
[1763594190460,0.1,136.98,136.94,6.15441813]
[1763594190666,0.1,136.98,136.95,6.81441813]
[1763594191082,0.1,136.98,136.96,0.66]
[1763594191865,0.1,136.98,136.96,8.57441813]
[1763594192086,0.1,136.98,136.96,2.42]
[1763594192381,0.1,136.98,136.97,0.66]
[1763594193290,6.15441813,137.05,136.97,6.81441813]
[1763594193590,6.15441813,137.05,137.0,6.15441813]
[1763594193788,18.12096,137.05,137.0,7.91441813]
[1763594193987,0.1,137.07,137.03,6.15441813]
[1763594194173,0.1,137.07,137.04,0.66]
[1763594194887,6.15441813,137.06,137.01,2.42]
[1763594195413,6.15441813,137.06,137.02,0.66]
[1763594195588,6.15441813,137.05,137.01,1.76]
[1763594195769,6.15441813,137.04,137.0,2.42]
[1763594196164,6.15441813,137.04,137.01,0.66]
[1763594196472,6.15441813,137.04,137.0,2.42]
[1763594196771,6.15441813,137.01,136.97,2.42]
[1763594196976,18.22096,137.04,136.98,6.15441813]
[1763594196977,6.15441813,137.03,136.98,6.15441813]
[1763594197200,6.15441813,137.03,136.98,6.81441813]
[1763594197374,6.15441813,137.03,136.99,0.66]
[1763594197769,6.15441813,137.02,136.97,7.91441813]
[1763594197976,6.15441813,137.02,136.97,2.42]
[1763594198198,6.15441813,137.01,136.97,2.42]
[1763594198505,6.15441813,136.99,136.94,0.66]
[1763594198667,1.86,137.03,136.91,8.57441813]
[1763594198668,6.15441813,136.97,136.91,8.57441813]
[1763594198869,18.22096,137.0,136.91,2.42]
[1763594198870,6.15441813,136.95,136.91,2.42]
[1763594199201,6.15441813,136.94,136.91,2.42]
[1763594199706,6.15441813,136.92,136.86,6.81441813]
[1763594199871,6.15441813,136.91,136.86,6.81441813]
[1763594200076,6.15441813,136.91,136.87,0.66]
[1763594200684,6.15441813,136.91,136.86,1.76]
[1763594200685,6.15441813,136.92,136.88,0.66]
[1763594200881,6.15441813,136.91,136.88,0.66]
[1763594201089,18.12096,136.94,136.86,1.76]
[1763594201090,6.15441813,136.89,136.86,1.76]
[1763594201495,6.15441813,136.89,136.86,2.42]
[1763594201693,0.1,136.93,136.86,2.42]
[1763594201694,6.15441813,136.9,136.86,2.42]
[1763594202302,6.15441813,136.91,136.87,0.66]
[1763594203084,0.1,136.96,136.88,6.15441813]
[1763594203288,0.1,136.96,136.89,0.66]
[1763594203289,24.27537813,136.94,136.89,0.66]
[1763594204215,16.68096,136.94,136.93,6.15441813]
[1763594204508,0.71,136.97,136.92,1.76]
[1763594204985,0.71,136.97,136.92,8.57441813]
[1763594205184,0.71,136.97,136.92,2.42]
[1763594205389,0.71,136.97,136.89,25.42602706]
[1763594205390,6.15441813,136.95,136.91,1.76]
[1763594205687,6.15441813,136.94,136.89,8.57441813]
[1763594205886,6.15441813,136.94,136.89,2.42]
[1763594206109,6.86441813,136.94,136.9,0.66]
[1763594206803,18.12096,136.97,136.91,0.66]
[1763594206987,6.15441813,136.96,136.91,0.66]
[1763594207394,6.86441813,136.95,136.89,8.57441813]
[1763594207711,6.15441813,136.94,136.89,8.57441813]
[1763594207940,9.78882769,136.98,136.92,6.15441813]
[1763594208087,0.71,137.02,136.96,6.15441813]
[1763594208288,6.15441813,136.99,136.96,1.76]
[1763594208599,6.15441813,137.01,136.96,1.76]
[1763594208908,6.86441813,137.02,136.96,8.57441813]
[1763594209511,6.15441813,136.99,136.96,1.76]
[1763594209684,6.15441813,137.0,136.96,1.76]
[1763594210088,0.68,137.0,136.96,1.76]
[1763594211611,6.83441813,137.0,136.96,1.76]
[1763594212113,0.68,136.99,136.95,1.76]
[1763594212497,6.83441813,136.99,136.95,1.76]
[1763594212702,18.12096,137.01,136.96,0.68]
[1763594212703,24.27537813,137.01,136.96,0.68]
[1763594213320,6.15441813,137.01,136.96,0.68]
[1763594213501,18.12096,137.04,136.97,6.15441813]
[1763594213687,0.78,137.07,137.0,6.15441813]
[1763594213895,6.15441813,137.05,137.0,6.15441813]
[1763594214227,6.15441813,137.05,137.0,6.83441813]
[1763594214411,6.15441813,137.05,136.99,1.76]
[1763594214640,6.15441813,137.04,136.99,2.44]
[1763594214823,6.15441813,137.04,136.99,8.59441813]
[1763594215150,6.83441813,137.03,136.96,6.83441813]
[1763594215328,0.68,137.03,136.97,1.76]
[1763594215664,6.83441813,137.03,136.97,2.44]
[1763594215815,10.46882769,137.05,136.98,0.68]
[1763594216157,6.15441813,137.03,136.98,6.83441813]
[1763594216514,6.83441813,137.03,136.98,6.83441813]
[1763594216821,6.15441813,137.03,136.98,0.68]
[1763594217011,6.83441813,137.03,136.98,0.68]
[1763594217214,6.15441813,137.04,136.98,6.83441813]
[1763594217431,0.68,137.05,136.98,6.83441813]
[1763594217432,6.15441813,137.03,136.98,6.83441813]
[1763594217748,6.15441813,137.01,136.97,2.44]
[1763594217912,6.15441813,137.03,136.97,8.59441813]
[1763594218107,6.15441813,137.02,136.97,2.44]
[1763594218334,6.15441813,137.02,136.97,8.59441813]
[1763594218537,6.15441813,137.02,136.98,0.68]
[1763594219637,6.15441813,137.01,136.97,1.76]
[1763594220114,6.15441813,137.01,136.95,24.95537813]
[1763594220314,0.68,137.0,136.92,6.83441813]
[1763594220514,6.15441813,136.99,136.93,8.59441813]
[1763594220919,6.15441813,136.99,136.94,0.68]
[1763594221126,6.15441813,136.98,136.94,0.68]
[1763594221352,0.68,136.98,136.93,1.76]
[1763594221650,6.15441813,136.95,136.93,1.76]
[1763594221827,6.83441813,136.95,136.93,1.76]
[1763594222028,6.83441813,136.94,136.87,0.68]
[1763594222225,6.15441813,136.92,136.88,1.76]
[1763594222439,18.80096,136.97,136.9,6.15441813]
[1763594222738,6.15441813,136.95,136.91,0.68]
[1763594223147,6.15441813,136.94,136.89,0.68]
[1763594223317,0.68,136.95,136.89,6.83441813]
[1763594223513,6.15441813,136.94,136.89,6.83441813]
[1763594223740,6.15441813,136.93,136.9,1.76]
[1763594224247,6.83441813,136.93,136.9,1.76]
[1763594224626,6.15441813,136.94,136.91,0.68]
[1763594224954,6.15441813,136.94,136.9,1.76]
[1763594225250,4.89220748,136.96,136.91,0.68]
[1763594225430,6.15441813,136.97,136.91,6.83441813]
[1763594225636,6.15441813,136.98,136.92,6.15441813]
[1763594225820,6.15441813,136.98,136.92,6.83441813]
[1763594226024,6.15441813,136.98,136.93,0.68]
[1763594226228,6.83441813,136.99,136.94,1.76]
[1763594226462,6.15441813,136.98,136.94,1.76]
[1763594226818,6.15441813,136.96,136.92,0.68]
[1763594227023,6.15441813,136.96,136.92,2.44]
[1763594227225,6.83441813,136.95,136.92,1.76]
[1763594227452,6.83441813,136.95,136.9,0.68]
[1763594227648,6.15441813,136.93,136.9,2.44]
[1763594227833,6.15441813,136.93,136.9,1.76]
[1763594228233,6.15441813,136.95,136.91,0.68]
[1763594228543,5.57175405,136.98,136.91,0.68]
[1763594228723,6.15441813,136.96,136.91,6.83441813]
[1763594228924,6.15441813,136.97,136.91,6.83441813]
[1763594229125,6.15441813,136.97,136.92,0.68]
[1763594229440,0.68,137.01,136.93,6.15441813]
[1763594229643,6.15441813,136.99,136.94,7.91441813]
[1763594229961,6.15441813,136.98,136.94,1.76]
[1763594230331,6.83441813,136.98,136.94,1.76]
[1763594230666,0.68,137.0,136.95,0.68]
[1763594230832,6.83441813,137.0,136.95,0.68]
[1763594231335,6.83441813,136.99,136.94,1.76]
[1763594231750,6.83441813,136.99,136.94,2.44]
[1763594232639,6.83441813,136.99,136.95,0.68]
[1763594233027,6.83441813,136.99,136.94,1.76]
[1763594233337,6.83441813,136.99,136.94,2.44]
[1763594234154,0.68,136.99,136.95,0.68]
[1763594235260,0.68,136.99,136.94,7.91441813]
[1763594235466,6.83441813,136.99,136.94,2.44]
[1763594238562,0.68,136.99,136.95,0.68]
[1763594238767,0.68,136.99,136.94,7.91441813]
[1763594238768,6.83441813,136.98,136.94,1.76]
[1763594238966,0.68,137.01,136.94,2.44]
[1763594239147,6.15441813,136.99,136.94,2.44]
[1763594239645,6.83441813,136.99,136.94,2.44]
[1763594239962,4.89467125,137.02,136.95,0.7]
[1763594240165,6.15441813,137.0,136.95,0.7]
[1763594241068,6.82441813,136.99,136.94,1.76]
[1763594241246,6.82441813,136.99,136.94,2.46]
[1763594242055,0.67,137.01,136.95,0.7]
[1763594242244,0.67,137.0,136.95,0.7]
[1763594242445,6.82441813,137.0,136.95,0.7]
[1763594242753,0.67,137.0,136.95,0.7]
[1763594242978,0.67,137.0,136.95,11.41219482]
[1763594243473,0.67,137.0,136.96,0.7]
[1763594243648,11.54882769,137.05,136.96,0.7]
[1763594243649,18.79096,137.02,136.96,0.7]
[1763594243846,0.67,137.02,136.96,0.7]
[1763594244175,22.81407196,137.1,137.01,28.83315482]
[1763594244176,5.00112873,137.07,137.01,28.83315482]
[1763594244381,0.77,137.07,137.02,1.76]
[1763594244681,10.71219482,137.03,137.01,1.76]
[1763594244972,10.71219482,137.03,137.0,1.76]
[1763594245182,10.71219482,137.01,136.95,0.7]
[1763594245395,0.67,137.02,136.97,1.76]
[1763594245553,0.67,137.04,136.97,12.47219482]
[1763594245756,10.71219482,137.02,136.97,13.17219482]
[1763594245981,10.71219482,137.02,136.97,2.46]
[1763594246277,10.71219482,137.0,136.97,1.76]
[1763594246572,10.71219482,136.99,136.97,1.76]
[1763594247273,11.41219482,136.99,136.97,1.76]
[1763594247482,11.41219482,136.98,136.95,1.76]